bitfinex-derivatives/quotes_SOLF0:USTF0_20241103
["timestamp","ask_amount","ask_price","bid_price","bid_amount"]
[1730626160297,3.8858409,163.59,163.57,3.0576]
[1730626160495,2.7201,163.61,163.57,3.0576]
[1730626160704,3.88573244,163.6,163.57,3.0576]
[1730626160895,3.88573244,163.59,163.57,3.0576]
[1730626161098,2.7201,163.61,163.57,3.0576]
[1730626161397,3.88564269,163.6,163.57,3.0576]
[1730626161698,3.88564269,163.59,163.57,3.0576]
[1730626161888,2.7201,163.61,163.57,3.0576]
[1730626162093,3.88563288,163.6,163.57,3.0576]
[1730626162284,3.88563288,163.59,163.57,3.0576]
[1730626162497,2.7201,163.61,163.57,3.0576]
[1730626162795,3.88552333,163.6,163.57,3.0576]
[1730626162997,3.88552333,163.59,163.57,3.0576]
[1730626163200,2.7201,163.61,163.57,3.0576]
[1730626163393,3.88551729,163.6,163.57,3.0576]
[1730626163594,3.88551729,163.59,163.57,3.0576]
[1730626163795,2.7201,163.61,163.57,3.0576]
[1730626164105,3.88552149,163.6,163.57,3.0576]
[1730626164290,3.88552149,163.59,163.57,3.0576]
[1730626164492,2.7201,163.61,163.57,3.0576]
[1730626164690,3.88541642,163.6,163.57,3.0576]
[1730626164989,3.88541642,163.59,163.57,3.0576]
[1730626165188,2.7201,163.61,163.57,3.0576]
[1730626165797,3.88549309,163.6,163.57,3.0576]
[1730626165988,3.88549309,163.59,163.57,3.0576]
[1730626166192,3.88549309,163.58,163.57,3.0576]
[1730626169003,2.7201,163.61,163.57,3.0576]
[1730626169338,3.88508487,163.6,163.57,3.0576]
[1730626169494,3.88508487,163.59,163.57,3.0576]
[1730626169804,2.7201,163.61,163.57,3.0576]
[1730626170004,3.88492019,163.6,163.57,3.0576]
[1730626170204,3.88492019,163.59,163.57,3.0576]
[1730626170407,2.7201,163.61,163.57,3.0576]
[1730626170605,3.88498572,163.6,163.57,3.0576]
[1730626170801,3.88498572,163.59,163.57,3.0576]
[1730626170994,2.7201,163.61,163.57,3.0576]
[1730626171201,3.88497187,163.6,163.57,3.0576]
[1730626171396,3.88497187,163.59,163.57,3.0576]
[1730626171597,2.7201,163.61,163.57,3.0576]
[1730626171796,3.88498199,163.6,163.57,3.0576]
[1730626172000,3.88498199,163.59,163.57,3.0576]
[1730626172295,2.7201,163.61,163.57,3.0576]
[1730626172512,3.88497448,163.6,163.57,3.0576]
[1730626172704,2.7201,163.61,163.57,3.0576]
[1730626172914,3.88498052,163.59,163.57,3.0576]
[1730626173097,2.7201,163.61,163.57,3.0576]
[1730626173298,3.88497448,163.6,163.57,3.0576]
[1730626173609,3.88497448,163.59,163.57,3.0576]
[1730626173809,2.7201,163.61,163.57,3.0576]
[1730626174110,3.88498306,163.6,163.57,3.0576]
[1730626174303,3.88498306,163.59,163.57,3.0576]
[1730626174504,2.7201,163.61,163.57,3.0576]
[1730626174710,3.88498335,163.6,163.57,3.0576]
[1730626174902,3.88498335,163.59,163.57,3.0576]
[1730626175111,2.7201,163.61,163.57,3.0576]
[1730626175303,3.88497732,163.6,163.57,3.0576]
[1730626175505,3.88497732,163.59,163.57,3.0576]
[1730626175719,3.88497732,163.58,163.57,3.0576]
[1730626176213,1.3656,163.61,163.57,3.0576]
[1730626176409,3.8849331,163.6,163.57,3.0576]
[1730626176598,3.8849331,163.59,163.58,3.0575]
[1730626176861,2.88,163.62,163.58,3.0575]
[1730626177106,3.88486325,163.61,163.58,3.0575]
[1730626177306,3.88486325,163.6,163.58,3.0575]
[1730626177621,3.0567,163.63,163.58,3.0575]
[1730626177805,3.88463839,163.62,163.58,3.0575]
[1730626178106,3.88463839,163.61,163.58,3.0575]
[1730626178305,3.0567,163.63,163.58,3.0575]
[1730626178614,3.88475052,163.62,163.58,3.0575]
[1730626178812,3.88475052,163.61,163.58,3.0575]
[1730626179011,52.09407435,163.65,163.53,4.1618]
[1730626179313,3.88466655,163.64,163.6,3.0571]
[1730626179508,3.88466655,163.63,163.6,3.0571]
[1730626179709,3.88466655,163.62,163.6,3.0571]
[1730626179915,3.88466655,163.61,163.6,3.0571]
[1730626180604,52.09407435,163.65,163.58,2.88]
[1730626180807,3.86733871,163.64,163.6,3.0572]
[1730626181014,3.86733871,163.63,163.6,3.0572]
[1730626181211,3.86733871,163.62,163.6,3.0572]
[1730626181408,55.15057435,163.65,163.6,3.0572]
[1730626181617,3.86742491,163.64,163.6,3.0572]
[1730626181800,55.15057435,163.65,163.6,3.0572]
[1730626181801,3.86742491,163.63,163.6,3.0572]
[1730626182011,3.86742491,163.62,163.6,3.0572]
[1730626182207,55.15057435,163.65,163.6,3.0572]
[1730626182413,3.86749209,163.64,163.6,3.0572]
[1730626182706,3.86749209,163.63,163.6,3.0572]
[1730626182903,3.86749209,163.62,163.6,3.0572]
[1730626183114,55.15057435,163.65,163.6,3.0572]
[1730626183315,3.86749783,163.64,163.6,3.0572]
[1730626183519,3.86758247,163.63,163.6,3.0572]
[1730626183708,3.86758247,163.62,163.6,3.0572]
[1730626183905,55.15057435,163.65,163.6,3.0572]
[1730626184106,3.86757071,163.64,163.6,3.0572]
[1730626184309,3.86757071,163.63,163.6,3.0572]
[1730626184508,3.86757071,163.62,163.6,3.0572]
[1730626184715,55.15057435,163.65,163.6,3.0572]
[1730626184919,3.86766252,163.64,163.6,3.0572]
[1730626185116,3.86766252,163.63,163.6,3.0572]
[1730626185314,3.86766252,163.62,163.6,3.0572]
[1730626185519,55.15057435,163.65,163.6,3.0572]
[1730626185716,3.8678432,163.64,163.6,3.0572]
[1730626186024,3.8678432,163.63,163.6,3.0572]
[1730626186220,3.8678432,163.62,163.6,3.0572]
[1730626186420,55.15057435,163.65,163.6,3.0572]
[1730626186724,3.86800246,163.64,163.6,3.0572]
[1730626186919,55.15057435,163.65,163.6,3.0572]
[1730626187118,3.86799039,163.64,163.6,3.0572]
[1730626187312,3.86799039,163.63,163.6,3.0572]
[1730626187513,3.86799039,163.62,163.6,3.0572]
[1730626187821,3.86799039,163.61,163.6,3.0572]
[1730626190656,55.15057435,163.65,163.6,3.0572]
[1730626190927,3.86832657,163.64,163.6,3.0572]
[1730626191112,3.86832657,163.63,163.6,3.0572]
[1730626191308,3.86832657,163.62,163.6,3.0572]
[1730626191631,3.86832657,163.61,163.6,3.0572]
[1730626192826,2.6227,163.68,163.63,3.0567]
[1730626193121,3.86767175,163.67,163.63,3.0567]
[1730626193324,3.86767175,163.66,163.63,3.0567]
[1730626193526,3.86767175,163.65,163.63,3.0567]
[1730626193732,2.6227,163.68,163.63,3.0567]
[1730626194286,5.6785,163.68,163.63,3.0567]
[1730626194528,3.86764462,163.67,163.63,3.0567]
[1730626194724,3.86764462,163.66,163.63,3.0567]
[1730626194925,3.86764462,163.65,163.63,3.0567]
[1730626195121,3.86764462,163.64,163.63,3.0567]
[1730626196426,3.86764462,163.64,163.62,3.0568]
[1730626196626,5.6785,163.68,163.62,3.0568]
[1730626196830,3.86794834,163.67,163.62,3.0568]
[1730626197036,5.6785,163.68,163.62,3.0568]
[1730626197037,3.86794834,163.66,163.62,3.0568]
[1730626197228,3.86794834,163.65,163.62,3.0568]
[1730626197539,3.86794834,163.64,163.62,3.0568]
[1730626197782,5.6785,163.68,163.62,3.0568]
[1730626198146,3.86810419,163.63,163.62,3.0568]
[1730626198725,7.73621142,163.63,163.62,3.0568]
[1730626200322,7.73621142,163.63,163.6,3.0572]
[1730626200634,3.86810723,163.62,163.6,3.0572]
[1730626201028,3.86810419,163.63,163.6,3.0572]
[1730626201137,3.86890534,163.62,163.61,3.057]
[1730626206640,2.6227,163.68,163.63,3.0566]
[1730626206843,3.86966415,163.67,163.63,3.0566]
[1730626207138,3.86966415,163.66,163.63,3.0566]
[1730626207331,5.6785,163.68,163.63,3.0566]
[1730626207741,3.86980422,163.67,163.63,3.0566]
[1730626208337,3.86980422,163.66,163.63,3.0566]
[1730626208540,3.86980422,163.65,163.63,3.0566]
[1730626208738,3.86980422,163.64,163.63,3.0566]
[1730626211143,5.6785,163.68,163.63,3.0566]
[1730626211355,3.86983247,163.64,163.63,3.0566]
[1730626212051,3.86983247,163.64,163.63,6.18342309]
[1730626212355,2.86,163.72,163.66,3.0561]
[1730626212550,6.92420369,163.71,163.66,3.0561]
[1730626212845,3.86900369,163.7,163.66,3.0561]
[1730626213044,3.86900369,163.69,163.66,3.0561]
[1730626213349,3.86900369,163.68,163.66,3.0561]
[1730626213647,3.86900369,163.67,163.66,3.0561]
[1730626214748,47.66665003,163.73,163.63,3.05621741]
[1730626214950,47.66665003,163.73,163.62,2.86]
[1730626214951,47.66665003,163.73,163.69,3.0555]
[1730626215249,47.66665003,163.73,163.68,3.03383967]
[1730626215449,47.66665003,163.73,163.7,3.0552]
[1730626216052,47.66665003,163.73,163.71,3.0551]
[1730626216455,3.9545,163.75,163.71,3.0551]
[1730626217056,3.9545,163.75,163.68,5.89689582]
[1730626217247,1.2702,163.75,163.68,5.89689582]
[1730626217556,2.86,163.79,163.73,3.0547]
[1730626217854,5.9138,163.79,163.73,3.0547]
[1730626218550,3.0539,163.78,163.73,3.0547]
[1730626219257,5.9138,163.79,163.74,3.0545]
[1730626220752,3.0538,163.79,163.74,3.0545]
[1730626221156,4.3979,163.79,163.74,3.0545]
[1730626221454,4.3979,163.79,163.75,3.0543]
[1730626224264,3.054,163.78,163.75,3.0543]
[1730626224757,1.3441,163.79,163.72,2.86]
[1730626225064,1.3441,163.79,163.74,3.0546]
[1730626225460,3.054,163.78,163.74,3.0546]
[1730626226062,3.054,163.78,163.72,2.86]
[1730626226593,3.054,163.78,163.75,3.0543]
[1730626226755,3.054,163.78,163.72,2.86]
[1730626227459,3.054,163.78,163.74,3.0545]
[1730626229358,3.054,163.78,163.72,2.86]
[1730626229666,4.3979,163.79,163.74,3.0546]
[1730626230561,1.3441,163.79,163.75,3.0544]
[1730626239184,4.3978,163.79,163.75,3.0544]
[1730626245479,4.3978,163.79,163.78,6.56946855]
[1730626249780,3.0534,163.81,163.78,9.62336855]
[1730626250284,3.0534,163.81,163.8,6.56946855]
[1730626255089,3.0536,163.8,163.78,9.62336855]
[1730626263198,3.0536,163.8,163.78,6.56946855]
[1730626263993,50.2124761,163.82,163.78,6.56946855]
[1730626264295,6.56946855,163.8,163.73,6.56946855]
[1730626264498,6.56946855,163.78,163.71,6.56946855]
[1730626264698,3.055,163.72,163.71,6.56946855]
[1730626265287,3.055,163.72,163.7,6.56946855]
[1730626265612,3.0552,163.71,163.7,6.56946855]
[1730626265892,3.0551,163.72,163.7,6.56946855]
[1730626266099,2.86,163.73,163.68,6.56946855]
[1730626266298,9.42946855,163.73,163.66,6.56946855]
[1730626266506,2.6562,163.72,163.66,9.62546855]
[1730626268511,3.0555,163.7,163.66,9.62546855]
[1730626275121,3.0555,163.7,163.68,6.56946855]
[1730626281208,2.86,163.69,163.62,3.02320357]
[1730626281415,6.56946855,163.66,163.59,6.56946855]
[1730626281608,2.86,163.65,163.59,6.56946855]
[1730626282198,3.0567,163.64,163.61,9.62636855]
[1730626282498,3.0567,163.64,163.61,6.56946855]
[1730626282703,3.0567,163.63,163.61,6.56946855]
[1730626283014,2.86,163.65,163.61,6.56946855]
[1730626283599,9.42946855,163.65,163.58,6.56946855]
[1730626283995,3.0575,163.59,163.54,6.56946855]
[1730626284307,2.86,163.59,163.54,6.56946855]
[1730626285501,2.86,163.59,163.54,9.62786855]
[1730626287312,3.0577,163.58,163.54,9.62786855]
[1730626288810,2.86,163.59,163.54,9.62786855]
[1730626289015,3.0578,163.57,163.54,9.62786855]
[1730626289313,3.0578,163.57,163.54,6.56946855]
[1730626290017,2.86,163.59,163.54,6.56946855]
[1730626290217,2.86,163.59,163.53,6.56946855]
[1730626290915,2.86,163.59,163.53,9.62796855]
[1730626291209,3.0583,163.55,163.53,6.56946855]
[1730626291416,5.9183,163.55,163.53,6.56946855]
[1730626291722,5.9183,163.55,163.52,6.56946855]
[1730626292409,2.86,163.55,163.52,6.56946855]
[1730626292617,2.86,163.55,163.53,3.0585]
[1730626293617,2.86,163.55,163.52,9.62806855]
[1730626295210,3.0585,163.54,163.52,6.56946855]
[1730626295412,3.0585,163.54,163.5,9.62846855]
[1730626295908,3.0589,163.51,163.5,6.56946855]
[1730626296108,9.42946855,163.55,163.48,6.56946855]
[1730626296913,9.42946855,163.55,163.49,3.0593]
[1730626297908,3.0587,163.53,163.49,3.0593]
[1730626301722,5.9187,163.53,163.5,6.56946855]
[1730626302117,5.9187,163.53,163.5,9.62856855]
[1730626302317,2.86,163.53,163.5,6.56946855]
[1730626302927,5.9187,163.53,163.5,6.56946855]
[1730626303516,3.0588,163.52,163.5,6.56946855]
[1730626310822,3.0591,163.51,163.48,9.62886855]
[1730626311836,9.42946855,163.53,163.45,1.2994]
[1730626312047,9.42946855,163.53,163.44,1.383]
[1730626312048,6.56946855,163.5,163.44,1.383]
[1730626312235,2.86,163.49,163.43,6.56946855]
[1730626312434,3.0599,163.47,163.43,9.62976855]
[1730626313330,3.0599,163.47,163.44,3.0602]
[1730626314137,2.86,163.49,163.43,6.56946855]
[1730626314409,2.86,163.49,163.43,9.62986855]
[1730626314940,3.0598,163.47,163.43,9.62986855]
[1730626315337,6.56946855,163.48,163.43,6.56946855]
[1730626315644,3.0599,163.46,163.43,6.56946855]
[1730626317234,3.0599,163.46,163.43,9.62986855]
[1730626318219,3.0602,163.44,163.41,9.63016855]
[1730626319740,3.0602,163.44,163.41,6.56946855]
[1730626320150,3.0605,163.43,163.41,6.56946855]
[1730626320354,9.42946855,163.45,163.39,6.56946855]
[1730626320649,3.0608,163.41,163.38,9.63076855]
[1730626321059,5.9208,163.41,163.38,9.63076855]
[1730626321234,2.86,163.41,163.38,6.56946855]
[1730626321434,5.9209,163.41,163.38,6.56946855]
[1730626322142,2.86,163.41,163.36,6.56946855]
[1730626322438,2.86,163.41,163.32,2.652]
[1730626322439,2.86,163.41,163.34,6.56946855]
[1730626322944,3.0615,163.38,163.34,9.63146855]
[1730626324440,3.0615,163.38,163.34,9.63156855]
[1730626325561,2.86,163.41,163.36,6.56946855]
[1730626325733,54.06480243,163.42,163.36,6.56946855]
[1730626325935,2.86,163.41,163.38,6.56946855]
[1730626326140,3.0611,163.4,163.38,6.56946855]
[1730626326347,3.0611,163.4,163.36,6.56946855]
[1730626326648,3.0613,163.39,163.36,6.56946855]
[1730626327651,3.0611,163.4,163.36,9.63116855]
[1730626328041,2.86,163.41,163.38,6.56946855]
[1730626328348,2.86,163.41,163.38,9.63066855]
[1730626330345,54.06480243,163.42,163.38,6.56946855]
[1730626330648,54.06480243,163.42,163.4,6.56946855]
[1730626331347,2.86,163.45,163.4,6.56946855]
[1730626331548,2.86,163.45,163.33,2.86]
[1730626331549,2.86,163.46,163.42,6.56946855]
[1730626331752,2.86,163.46,163.42,9.62996855]
[1730626331952,2.86,163.46,163.44,6.56946855]
[1730626332243,9.17336855,163.52,163.45,6.56946855]
[1730626332448,2.86,163.51,163.45,6.56946855]
[1730626332952,3.0592,163.5,163.47,9.62916855]
[1730626333545,2.86,163.51,163.47,6.56946855]
[1730626333748,2.86,163.51,163.45,6.56946855]
[1730626334046,2.86,163.51,163.44,6.56946855]
[1730626334047,9.42946855,163.51,163.44,6.56946855]
[1730626334440,3.0597,163.48,163.44,9.62966855]
[1730626334749,9.42946855,163.51,163.44,9.62966855]
[1730626334956,3.0596,163.48,163.45,3.0601]
[1730626335341,3.0596,163.48,163.45,9.62956855]
[1730626335935,2.86,163.51,163.45,9.62956855]
[1730626335936,3.0593,163.5,163.46,3.0597]
[1730626336157,2.86,163.51,163.47,6.56946855]
[1730626337544,2.86,163.51,163.47,9.62906855]
[1730626337958,9.42946855,163.51,163.45,6.56946855]
[1730626338199,9.42946855,163.51,163.44,3.0602]
[1730626338649,9.42946855,163.51,163.43,6.56946855]
[1730626338855,6.56946855,163.47,163.41,3.0608]
[1730626339052,9.42946855,163.46,163.39,6.56946855]
[1730626339353,6.56946855,163.44,163.39,6.56946855]
[1730626339551,2.86,163.43,163.39,6.56946855]
[1730626339748,3.0607,163.42,163.39,6.56946855]
[1730626342355,3.0607,163.42,163.39,9.63056855]
[1730626343149,2.86,163.43,163.39,6.56946855]
[1730626343353,2.86,163.43,163.37,6.56946855]
[1730626343559,6.56946855,163.42,163.37,6.56946855]
[1730626343766,6.56946855,163.42,163.35,6.56946855]
[1730626343952,3.0612,163.4,163.36,3.0617]
[1730626344455,3.0612,163.39,163.36,3.0617]
[1730626344662,2.86,163.39,163.34,3.062]
[1730626344952,2.86,163.39,163.33,6.56946855]
[1730626345159,3.0617,163.37,163.34,3.0621]
[1730626345558,2.86,163.39,163.33,6.56946855]
[1730626345772,3.0617,163.37,163.33,9.63166855]
[1730626347454,9.42946855,163.39,163.33,9.63166855]
[1730626347857,3.0617,163.37,163.33,9.63166855]
[1730626349957,3.0618,163.36,163.33,9.63166855]
[1730626353460,3.0619,163.36,163.33,9.63176855]
[1730626355979,6.56946855,163.38,163.3,6.56946855]
[1730626356172,6.56946855,163.34,163.28,6.56946855]
[1730626356374,9.42946855,163.34,163.27,3.9385]
[1730626356967,3.0628,163.31,163.27,7.0018]
[1730626357265,9.42946855,163.34,163.27,7.0018]
[1730626357571,3.0629,163.31,163.27,7.0018]
[1730626358269,3.0627,163.32,163.29,3.0629]
[1730626358471,9.42946855,163.34,163.26,6.56946855]
[1730626358868,3.0626,163.32,163.28,9.63256855]
[1730626360584,5.9223,163.34,163.3,9.63226855]
[1730626360879,2.86,163.36,163.31,6.56946855]
[1730626361086,5.9218,163.36,163.33,3.0622]
[1730626361280,2.86,163.36,163.31,6.56946855]
[1730626362479,3.0615,163.38,163.33,6.56946855]
[1730626362872,3.0615,163.38,163.34,6.56946855]
[1730626363582,3.0615,163.38,163.33,6.56946855]
[1730626365294,3.0615,163.38,163.35,3.0619]
[1730626365880,5.9213,163.39,163.34,3.062]
[1730626366183,2.86,163.39,163.33,6.56946855]
[1730626367295,3.0614,163.38,163.35,3.0618]
[1730626367791,3.0614,163.38,163.35,9.63126855]
[1730626367990,3.0613,163.39,163.36,3.0617]
[1730626369292,5.9212,163.4,163.37,3.0616]
[1730626370494,54.30241136,163.41,163.39,3.0611]
[1730626370694,54.30241136,163.41,163.38,6.56946855]
[1730626371197,54.30241136,163.41,163.38,9.63076855]
[1730626373389,57.36341136,163.41,163.38,6.56946855]
[1730626373696,3.061,163.41,163.38,6.56946855]
[1730626375092,5.9206,163.43,163.38,6.56946855]
[1730626375299,2.86,163.43,163.38,6.56946855]
[1730626376300,3.0606,163.42,163.39,3.0611]
[1730626376901,2.86,163.43,163.36,6.56946855]
[1730626377099,6.56946855,163.4,163.33,6.56946855]
[1730626377297,2.86,163.39,163.33,6.56946855]
[1730626377599,3.0617,163.37,163.34,3.0621]
[1730626382102,3.0615,163.38,163.34,3.0621]
[1730626383202,2.86,163.39,163.33,6.56946855]
[1730626383398,3.0621,163.35,163.32,6.56946855]
[1730626384402,3.0621,163.35,163.32,9.63196855]
[1730626386512,3.0621,163.35,163.32,6.56946855]
[1730626387403,3.0621,163.35,163.32,9.63196855]
[1730626388814,3.0623,163.33,163.3,9.63226855]
[1730626389115,3.0623,163.33,163.3,6.56946855]
[1730626389309,2.86,163.35,163.3,6.56946855]
[1730626389621,3.0626,163.32,163.3,6.56946855]
[1730626390011,3.0626,163.32,163.29,9.63246855]
[1730626390216,9.42946855,163.35,163.29,6.56946855]
[1730626390407,27.77946855,163.35,163.27,6.56946855]
[1730626391816,3.063,163.3,163.27,6.56946855]
[1730626393309,6.56946855,163.28,163.26,3.0635]
[1730626397719,6.56946855,163.28,163.25,3.0638]
[1730626398217,6.56946855,163.28,163.22,6.56946855]
[1730626398417,6.56946855,163.28,163.26,3.0636]
[1730626398621,3.0632,163.29,163.26,3.0636]
[1730626399914,6.56946855,163.35,163.28,6.56946855]
[1730626400217,2.86,163.37,163.34,6.56946855]
[1730626400417,2.86,163.37,163.36,6.56946855]
[1730626400607,53.0301682,163.4,163.36,6.56946855]
[1730626400923,53.0301682,163.4,163.38,6.56946855]
[1730626401113,56.0912682,163.4,163.38,6.56946855]
[1730626401613,56.0912682,163.4,163.35,10.28289768]
[1730626402007,56.0912682,163.4,163.36,3.0617]
[1730626402721,3.0613,163.39,163.35,13.34479768]
[1730626403079,53.0301682,163.4,163.35,10.28289768]
[1730626403219,50.1701682,163.4,163.35,10.28289768]
[1730626403419,50.1701682,163.4,163.38,3.0613]
[1730626403810,50.1701682,163.4,163.35,10.28289768]
[1730626404217,53.2311682,163.4,163.35,10.28289768]
[1730626404514,50.1701682,163.4,163.31,10.28289768]
[1730626404883,3.0621,163.35,163.31,3.0626]
[1730626405315,3.0622,163.34,163.3,3.0628]
[1730626405714,2.86,163.37,163.26,2.86]
[1730626405715,2.86,163.37,163.26,10.28289768]
[1730626405913,18.35,163.38,163.27,3.0634]
[1730626405914,3.0627,163.31,163.27,3.0634]
[1730626406328,3.0629,163.3,163.26,13.34639768]
[1730626406515,3.0629,163.3,163.26,3.0635]
[1730626406917,3.0632,163.29,163.25,3.0638]
[1730626407122,2.86,163.32,163.22,10.28289768]
[1730626407318,2.6694,163.31,163.22,10.28289768]
[1730626407522,2.6694,163.31,163.22,13.34719768]
[1730626407523,3.0636,163.27,163.22,13.34719768]
[1730626409522,2.86,163.28,163.22,13.34719768]
[1730626409719,3.0637,163.26,163.22,13.34719768]
[1730626410920,2.86,163.28,163.23,3.0641]
[1730626410921,5.9234,163.28,163.23,3.0641]
[1730626412831,5.9234,163.28,163.22,10.28289768]
[1730626413031,5.9234,163.28,163.24,3.064]
[1730626416230,3.0639,163.25,163.21,5.6899]
[1730626416433,3.0639,163.25,163.21,1.3087]
[1730626417132,3.0637,163.26,163.22,3.0644]
[1730626418126,2.86,163.28,163.2,10.28289768]
[1730626418330,3.064,163.25,163.21,3.0645]
[1730626418531,2.86,163.28,163.21,3.0645]
[1730626419037,3.064,163.24,163.21,3.0645]
[1730626421032,2.86,163.26,163.23,3.0641]
[1730626422337,5.9237,163.26,163.23,3.0641]
[1730626422840,2.86,163.26,163.23,3.0641]
[1730626424739,5.9237,163.26,163.23,3.0641]
[1730626425237,2.86,163.26,163.19,1.3139]
[1730626425534,3.064,163.24,163.21,3.0644]
[1730626426335,3.0638,163.25,163.22,3.0643]
[1730626427538,3.0629,163.3,163.26,3.0635]
[1730626427748,3.0629,163.3,163.24,6.58804834]
[1730626427749,12.11744834,163.31,163.24,6.58804834]
[1730626428230,3.0633,163.28,163.25,3.0637]
[1730626430246,9.44804834,163.31,163.26,9.65154834]
[1730626430635,3.0629,163.3,163.26,9.65154834]
[1730626433149,3.0629,163.3,163.26,6.58804834]
[1730626433343,3.0629,163.3,163.27,3.0634]
[1730626436848,3.0631,163.29,163.27,3.0634]
[1730626438748,2.86,163.31,163.27,3.0634]
[1730626439049,3.0629,163.3,163.27,3.0634]
[1730626439556,2.86,163.31,163.26,6.58804834]
[1730626439751,3.0632,163.29,163.26,9.65154834]
[1730626440442,3.0634,163.28,163.24,3.0639]
[1730626440647,6.58804834,163.29,163.22,6.58804834]
[1730626441253,3.0638,163.26,163.23,3.0641]
[1730626442265,3.0639,163.25,163.22,9.65244834]
[1730626442459,3.0639,163.25,163.21,6.58804834]
[1730626442758,3.0639,163.25,163.21,9.65244834]
[1730626443150,3.0641,163.24,163.21,9.65244834]
[1730626444462,3.0641,163.24,163.21,6.58804834]
[1730626445680,3.0639,163.25,163.22,3.0643]
[1730626447166,3.0639,163.25,163.21,9.65254834]
[1730626449570,2.86,163.27,163.23,3.064]
[1730626449571,3.0636,163.26,163.23,3.064]
[1730626449770,3.0636,163.26,163.22,6.58804834]
[1730626450366,3.0639,163.25,163.22,9.65234834]
[1730626450882,3.0637,163.26,163.22,9.65234834]
[1730626455772,3.0637,163.26,163.23,3.0641]
[1730626456180,2.88,163.28,163.22,6.58804834]
[1730626456867,3.0636,163.27,163.22,6.58804834]
[1730626457469,3.0636,163.27,163.23,3.0641]
[1730626458572,3.0636,163.27,163.22,6.58804834]
[1730626458778,3.0633,163.28,163.24,6.58804834]
[1730626459278,3.0635,163.27,163.24,9.65194834]
[1730626461573,2.88,163.29,163.24,6.58804834]
[1730626461779,5.9432,163.29,163.26,3.0636]
[1730626462868,2.88,163.29,163.26,3.0636]
[1730626463470,6.58804834,163.31,163.24,6.58804834]
[1730626463683,2.88,163.31,163.27,3.0633]
[1730626463877,2.88,163.32,163.27,3.0633]
[1730626464670,3.063,163.3,163.27,3.0633]
[1730626465377,3.0629,163.3,163.27,3.0633]
[1730626468083,6.58804834,163.3,163.23,7.91054834]
[1730626468270,6.58804834,163.3,163.23,6.58804834]
[1730626468471,3.0639,163.25,163.23,6.58804834]
[1730626469381,3.0639,163.25,163.23,9.65224834]
[1730626469574,3.0637,163.26,163.23,9.65224834]
[1730626469880,2.88,163.28,163.23,6.58804834]
[1730626471377,3.0639,163.25,163.23,6.58804834]
[1730626472986,2.88,163.28,163.23,6.58804834]
[1730626473872,3.0639,163.25,163.23,6.58804834]
[1730626474676,2.88,163.28,163.23,6.58804834]
[1730626474877,3.0636,163.26,163.24,3.064]
[1730626479090,3.0636,163.26,163.23,6.58804834]
[1730626479294,3.0636,163.26,163.23,9.65214834]
[1730626482291,6.58804834,163.3,163.23,9.65214834]
[1730626482292,6.58804834,163.3,163.23,6.58804834]
[1730626482593,3.0628,163.31,163.27,9.65144834]
[1730626482793,2.86,163.33,163.27,9.65144834]
[1730626482978,3.0629,163.3,163.27,9.65144834]
[1730626484285,2.86,163.33,163.27,9.65144834]
[1730626484590,2.86,163.33,163.27,6.58804834]
[1730626484786,2.86,163.33,163.29,6.58804834]
[1730626484980,5.9224,163.33,163.3,3.0627]
[1730626485383,3.0624,163.33,163.3,3.0627]
[1730626486293,3.0622,163.34,163.31,3.0627]
[1730626486799,2.86,163.35,163.29,6.58804834]
[1730626487097,3.0624,163.33,163.3,3.0627]
[1730626490995,3.0623,163.34,163.3,3.0627]
[1730626491192,3.0623,163.34,163.31,3.0626]
[1730626494390,2.86,163.35,163.3,3.0628]
[1730626494391,3.0624,163.33,163.3,3.0628]
[1730626497802,3.0624,163.33,163.31,6.58804834]
[1730626498613,3.0624,163.33,163.26,4.0581]
[1730626498614,3.062,163.35,163.32,9.65044834]
[1730626501503,3.0623,163.33,163.31,6.58804834]
[1730626502302,3.0623,163.33,163.31,9.65074834]
[1730626502500,3.0622,163.34,163.31,9.65074834]
[1730626502696,9.44804834,163.37,163.31,6.58804834]